[Event "Titled Tuesday Blitz July 26 Late 2022"]
[White "Kravtsiv, Martyn"]
[Black "Zhu, Jiner"]
[WhiteFideId "14113147"]
[BlackFideId "8608059"]
[WhiteElo "2694"]
[BlackElo "2281"]
[Result "1-0"]
[Round "09"]
[TimeControl "180+1"]
[Date "2022.07.26"]
[WhiteClock "0:00:34"]
[BlackClock "0:00:04"]

1. e4 {[%clk 0:03:00]}  c6 {[%clk 0:02:59]} 2. Nf3 {[%clk 0:02:59]}  d5 {[%clk 0:02:58]} 3. d3 {[%clk 0:02:59]}  g6 {[%clk 0:02:55]} 4. e5 {[%clk 0:02:57]}  Bg7 {[%clk 0:02:55]} 5. d4 {[%clk 0:02:58]}  c5 {[%clk 0:02:45]} 6. dxc5 {[%clk 0:02:53]}  Nc6 {[%clk 0:02:45]} 7. Nc3 {[%clk 0:02:54]}  Be6 {[%clk 0:01:53]} 8. Bb5 {[%clk 0:02:46]}  a6 {[%clk 0:01:49]} 9. Bxc6+ {[%clk 0:02:45]}  bxc6 {[%clk 0:01:50]} 10. O-O {[%clk 0:02:41]}  Bg4 {[%clk 0:01:49]} 11. Re1 {[%clk 0:02:41]}  e6 {[%clk 0:01:48]} 12. Na4 {[%clk 0:02:38]}  Ne7 {[%clk 0:01:45]} 13. h3 {[%clk 0:02:35]}  Bxf3 {[%clk 0:01:44]} 14. Qxf3 {[%clk 0:02:36]}  O-O {[%clk 0:01:44]} 15. Nb6 {[%clk 0:02:35]}  Ra7 {[%clk 0:01:43]} 16. Bg5 {[%clk 0:02:35]}  h6 {[%clk 0:01:41]} 17. Bxe7 {[%clk 0:02:28]}  Qxe7 {[%clk 0:01:42]} 18. b4 {[%clk 0:02:28]}  f6 {[%clk 0:01:39]} 19. Qg3 {[%clk 0:02:15]}  fxe5 {[%clk 0:01:30]} 20. Qxg6 {[%clk 0:02:14]}  e4 {[%clk 0:01:30]} 21. Rad1 {[%clk 0:02:13]}  Qg5 {[%clk 0:01:24]} 22. Qxg5 {[%clk 0:02:09]}  hxg5 {[%clk 0:01:25]} 23. Re3 {[%clk 0:02:05]}  Raf7 {[%clk 0:01:23]} 24. Rd2 {[%clk 0:01:55]}  Be5 {[%clk 0:01:03]} 25. Ra3 {[%clk 0:01:50]}  e3 {[%clk 0:01:01]} 26. Rxe3 {[%clk 0:01:43]}  Bf4 {[%clk 0:01:01]} 27. Ree2 {[%clk 0:01:44]}  Bxd2 {[%clk 0:01:01]} 28. Rxd2 {[%clk 0:01:44]}  Rf4 {[%clk 0:01:01]} 29. c3 {[%clk 0:01:43]}  R8f7 {[%clk 0:00:59]} 30. a4 {[%clk 0:01:39]}  Kg7 {[%clk 0:00:56]} 31. g3 {[%clk 0:01:30]}  Re4 {[%clk 0:00:55]} 32. Nc8 {[%clk 0:01:29]}  Rf3 {[%clk 0:00:49]} 33. Ne7 {[%clk 0:01:20]}  Rxc3 {[%clk 0:00:37]} 34. Nxc6 {[%clk 0:01:20]}  Re1+ {[%clk 0:00:34]} 35. Kg2 {[%clk 0:01:19]}  Ra1 {[%clk 0:00:33]} 36. a5 {[%clk 0:01:19]}  Kf6 {[%clk 0:00:27]} 37. Re2 {[%clk 0:01:16]}  Rc4 {[%clk 0:00:27]} 38. Rd2 {[%clk 0:01:10]}  Rc3 {[%clk 0:00:27]} 39. h4 {[%clk 0:01:08]}  gxh4 {[%clk 0:00:26]} 40. gxh4 {[%clk 0:01:09]}  Rc4 {[%clk 0:00:25]} 41. h5 {[%clk 0:01:08]}  Ra3 {[%clk 0:00:19]} 42. Rb2 {[%clk 0:00:52]}  Rg4+ {[%clk 0:00:18]} 43. Kf1 {[%clk 0:00:51]}  Rh3 {[%clk 0:00:13]} 44. Ra2 {[%clk 0:00:49]}  Rxh5 {[%clk 0:00:12]} 45. b5 {[%clk 0:00:48]}  axb5 {[%clk 0:00:12]} 46. a6 {[%clk 0:00:49]}  Rh8 {[%clk 0:00:13]} 47. a7 {[%clk 0:00:47]}  Ra8 {[%clk 0:00:13]} 48. Ra5 {[%clk 0:00:46]}  b4 {[%clk 0:00:09]} 49. Rb5 {[%clk 0:00:44]}  Rc4 {[%clk 0:00:08]} 50. Rb8 {[%clk 0:00:42]}  Rc1+ {[%clk 0:00:04]} 51. Ke2 {[%clk 0:00:41]}  Rxa7 {[%clk 0:00:03]} 52. Nxa7 {[%clk 0:00:40]}  Rxc5 {[%clk 0:00:04]} 53. Rxb4 {[%clk 0:00:40]}  Ke5 {[%clk 0:00:04]} 54. Nb5 {[%clk 0:00:39]}  Kf5 {[%clk 0:00:03]} 55. Nd4+ {[%clk 0:00:38]}  Ke5 {[%clk 0:00:03]} 56. f4+ {[%clk 0:00:38]}  Kf6 {[%clk 0:00:01]} 57. Rb6 {[%clk 0:00:38]}  Rc4 {[%clk 0:00:01]} 58. Ke3 {[%clk 0:00:38]}  Rc3+ {[%clk 0:00:02]} 59. Kd2 {[%clk 0:00:38]}  Rc4 {[%clk 0:00:01]} 60. Kd3 {[%clk 0:00:38]}  Kf7 {[%clk 0:00:02]} 61. Nxe6 {[%clk 0:00:37]}  Ra4 {[%clk 0:00:02]} 62. Nd4 {[%clk 0:00:37]}  Ra3+ {[%clk 0:00:02]} 63. Rb3 {[%clk 0:00:37]}  Ra4 {[%clk 0:00:02]} 64. Ke3 {[%clk 0:00:37]}  Kf6 {[%clk 0:00:03]} 65. Rb6+ {[%clk 0:00:35]}  Kf7 {[%clk 0:00:03]} 66. Rd6 {[%clk 0:00:35]}  Ke7 {[%clk 0:00:03]} 67. Rxd5 {[%clk 0:00:34]}  Rc4 {[%clk 0:00:04]} 68. Ke4 {[%clk 0:00:34]} 1-0


[Site "https://www.chess.com"]

[Event "Titled Tuesday Blitz July 26 Late 2022"]
[White "Lashkin, Jegor"]
[Black "Wu, Rochelle"]
[WhiteFideId "13907808"]
[BlackFideId "30908132"]
[WhiteElo "2368"]
[BlackElo "2168"]
[Result "1-0"]
[Round "09"]
[TimeControl "180+1"]
[Date "2022.07.26"]
[WhiteClock "0:00:17"]
[BlackClock "0:00:04"]

1. d4 {[%clk 0:03:00]}  g6 {[%clk 0:02:56]} 2. c4 {[%clk 0:03:00]}  Bg7 {[%clk 0:02:56]} 3. Nf3 {[%clk 0:02:59]}  Nf6 {[%clk 0:02:55]} 4. Nc3 {[%clk 0:02:59]}  d5 {[%clk 0:02:55]} 5. Bg5 {[%clk 0:02:55]}  Ne4 {[%clk 0:02:50]} 6. Bf4 {[%clk 0:02:55]}  Nxc3 {[%clk 0:02:49]} 7. bxc3 {[%clk 0:02:56]}  c6 {[%clk 0:02:49]} 8. e3 {[%clk 0:02:55]}  O-O {[%clk 0:02:48]} 9. Bd3 {[%clk 0:02:49]}  Qa5 {[%clk 0:02:44]} 10. Qb3 {[%clk 0:02:43]}  dxc4 {[%clk 0:02:41]} 11. Bxc4 {[%clk 0:02:44]}  b5 {[%clk 0:02:41]} 12. Be2 {[%clk 0:02:35]}  Be6 {[%clk 0:02:40]} 13. Qc2 {[%clk 0:02:31]}  Nd7 {[%clk 0:02:31]} 14. Ng5 {[%clk 0:02:18]}  Bf5 {[%clk 0:02:26]} 15. e4 {[%clk 0:01:56]}  h6 {[%clk 0:02:21]} 16. exf5 {[%clk 0:01:53]}  hxg5 {[%clk 0:02:20]} 17. Bd2 {[%clk 0:01:46]}  gxf5 {[%clk 0:01:48]} 18. Qxf5 {[%clk 0:01:47]}  Nf6 {[%clk 0:01:39]} 19. O-O {[%clk 0:01:39]}  e6 {[%clk 0:01:36]} 20. Qxg5 {[%clk 0:01:39]}  Ne4 {[%clk 0:01:35]} 21. Qf4 {[%clk 0:01:35]}  Nxc3 {[%clk 0:00:51]} 22. Bd3 {[%clk 0:01:26]}  Nd5 {[%clk 0:00:38]} 23. Qg5 {[%clk 0:01:22]}  Qd8 {[%clk 0:00:37]} 24. Qh5 {[%clk 0:01:18]}  f5 {[%clk 0:00:30]} 25. Rac1 {[%clk 0:01:15]}  Rc8 {[%clk 0:00:27]} 26. Rfe1 {[%clk 0:01:12]}  Qf6 {[%clk 0:00:27]} 27. Qf3 {[%clk 0:00:53]}  Rfe8 {[%clk 0:00:24]} 28. Be3 {[%clk 0:00:34]}  f4 {[%clk 0:00:10]} 29. Bd2 {[%clk 0:00:33]}  Qxd4 {[%clk 0:00:11]} 30. Rcd1 {[%clk 0:00:27]}  Nf6 {[%clk 0:00:09]} 31. Bxf4 {[%clk 0:00:25]}  Qc5 {[%clk 0:00:07]} 32. Be5 {[%clk 0:00:21]}  Rf8 {[%clk 0:00:06]} 33. Qh3 {[%clk 0:00:20]}  Ne4 {[%clk 0:00:05]} 34. Bxe4 {[%clk 0:00:17]}  Qxf2+ {[%clk 0:00:04]} 35. Kh1 {[%clk 0:00:17]} 1-0


[Site "https://www.chess.com"]

[Event "Titled Tuesday Blitz July 26 Late 2022"]
[White "Maksimovic, Bojan"]
[Black "Nakamura, Hikaru"]
[WhiteFideId "14408120"]
[BlackFideId "2016192"]
[WhiteElo "2453"]
[BlackElo "2850"]
[Result "0-1"]
[Round "09"]
[TimeControl "180+1"]
[Date "2022.07.26"]
[WhiteClock "0:00:03"]
[BlackClock "0:01:32"]

1. e4 {[%clk 0:03:00]}  g6 {[%clk 0:02:56]} 2. d4 {[%clk 0:02:57]}  Bg7 {[%clk 0:02:56]} 3. Nc3 {[%clk 0:02:45]}  a6 {[%clk 0:02:56]} 4. f4 {[%clk 0:02:41]}  c6 {[%clk 0:02:56]} 5. Be3 {[%clk 0:02:36]}  d5 {[%clk 0:02:56]} 6. e5 {[%clk 0:02:36]}  h5 {[%clk 0:02:56]} 7. Nf3 {[%clk 0:02:24]}  Bg4 {[%clk 0:02:56]} 8. Be2 {[%clk 0:02:23]}  Nh6 {[%clk 0:02:55]} 9. O-O {[%clk 0:02:21]}  e6 {[%clk 0:02:55]} 10. Bf2 {[%clk 0:02:17]}  Nd7 {[%clk 0:02:54]} 11. h3 {[%clk 0:02:14]}  Bxf3 {[%clk 0:02:54]} 12. Bxf3 {[%clk 0:02:15]}  h4 {[%clk 0:02:55]} 13. Ne2 {[%clk 0:02:14]}  Bf8 {[%clk 0:02:53]} 14. b3 {[%clk 0:02:11]}  b5 {[%clk 0:02:48]} 15. a4 {[%clk 0:02:06]}  Nf5 {[%clk 0:02:36]} 16. Qd2 {[%clk 0:02:01]}  Be7 {[%clk 0:02:32]} 17. axb5 {[%clk 0:01:53]}  axb5 {[%clk 0:02:33]} 18. c4 {[%clk 0:01:53]}  bxc4 {[%clk 0:02:31]} 19. bxc4 {[%clk 0:01:54]}  Nb6 {[%clk 0:02:31]} 20. c5 {[%clk 0:01:40]}  Nc4 {[%clk 0:02:30]} 21. Qc3 {[%clk 0:01:41]}  O-O {[%clk 0:02:29]} 22. Bg4 {[%clk 0:01:32]}  Nh6 {[%clk 0:02:22]} 23. Bf3 {[%clk 0:01:28]}  Qd7 {[%clk 0:02:17]} 24. Rxa8 {[%clk 0:01:27]}  Rxa8 {[%clk 0:02:16]} 25. Ra1 {[%clk 0:01:27]}  Rb8 {[%clk 0:02:17]} 26. Kh1 {[%clk 0:01:24]}  Qb7 {[%clk 0:02:15]} 27. Ng1 {[%clk 0:01:16]}  Qb2 {[%clk 0:02:08]} 28. Qxb2 {[%clk 0:01:15]}  Rxb2 {[%clk 0:02:08]} 29. Be2 {[%clk 0:01:10]}  Nf5 {[%clk 0:02:06]} 30. Kh2 {[%clk 0:00:34]}  Nd2 {[%clk 0:01:41]} 31. Bg4 {[%clk 0:00:20]}  Nb3 {[%clk 0:01:33]} 32. Ra8+ {[%clk 0:00:12]}  Kg7 {[%clk 0:01:34]} 33. Bxf5 {[%clk 0:00:07]}  Rxf2 {[%clk 0:01:32]} 34. Bg4 {[%clk 0:00:05]}  Nxd4 {[%clk 0:01:32]} 35. Ra7 {[%clk 0:00:05]}  Bxc5 {[%clk 0:01:32]} 36. Rc7 {[%clk 0:00:03]}  Rf1 {[%clk 0:01:32]} 0-1


[Site "https://www.chess.com"]

[Event "Titled Tuesday Blitz July 26 Late 2022"]
[White "Melikyan, Gnel"]
[Black "Rios Escobar, Adan"]
[WhiteFideId "54109990"]
[BlackFideId "3403645"]
[WhiteElo "1772"]
[BlackElo "2398"]
[Result "1-0"]
[Round "09"]
[TimeControl "180+1"]
[Date "2022.07.27"]
[WhiteClock "0:00:08"]
[BlackClock "0:00:02"]

1. g3 {[%clk 0:02:58]}  Nf6 {[%clk 0:02:59]} 2. Bg2 {[%clk 0:02:57]}  g6 {[%clk 0:02:56]} 3. e4 {[%clk 0:02:51]}  d6 {[%clk 0:02:53]} 4. d4 {[%clk 0:02:50]}  Bg7 {[%clk 0:02:50]} 5. Ne2 {[%clk 0:02:49]}  O-O {[%clk 0:02:49]} 6. O-O {[%clk 0:02:49]}  Nbd7 {[%clk 0:02:42]} 7. c3 {[%clk 0:02:45]}  c5 {[%clk 0:02:34]} 8. h3 {[%clk 0:02:41]}  Rb8 {[%clk 0:02:34]} 9. a4 {[%clk 0:02:39]}  a6 {[%clk 0:02:28]} 10. a5 {[%clk 0:02:38]}  b5 {[%clk 0:02:28]} 11. axb6 {[%clk 0:02:37]}  Qxb6 {[%clk 0:02:20]} 12. Na3 {[%clk 0:02:34]}  cxd4 {[%clk 0:02:20]} 13. Qxd4 {[%clk 0:02:30]}  Bb7 {[%clk 0:02:10]} 14. Re1 {[%clk 0:02:19]}  Qc7 {[%clk 0:02:07]} 15. Qe3 {[%clk 0:02:07]}  Nc5 {[%clk 0:02:05]} 16. f3 {[%clk 0:02:02]}  Nb3 {[%clk 0:02:01]} 17. Rb1 {[%clk 0:02:00]}  Rfc8 {[%clk 0:01:57]} 18. Nc2 {[%clk 0:01:46]}  Nd7 {[%clk 0:01:54]} 19. Rd1 {[%clk 0:01:37]}  Ndc5 {[%clk 0:01:51]} 20. f4 {[%clk 0:01:22]}  a5 {[%clk 0:01:49]} 21. Bd2 {[%clk 0:01:13]}  Nxd2 {[%clk 0:01:48]} 22. Rxd2 {[%clk 0:01:13]}  Nb3 {[%clk 0:01:47]} 23. Rdd1 {[%clk 0:01:11]}  Ba6 {[%clk 0:01:36]} 24. Bf1 {[%clk 0:01:06]}  h5 {[%clk 0:01:14]} 25. h4 {[%clk 0:00:55]}  Bb7 {[%clk 0:01:09]} 26. Ncd4 {[%clk 0:00:53]}  Nc5 {[%clk 0:01:03]} 27. Bg2 {[%clk 0:00:48]}  a4 {[%clk 0:01:03]} 28. f5 {[%clk 0:00:44]}  Kh7 {[%clk 0:00:59]} 29. Nf4 {[%clk 0:00:40]}  Bh6 {[%clk 0:00:58]} 30. Rf1 {[%clk 0:00:32]}  e5 {[%clk 0:00:53]} 31. fxe6 {[%clk 0:00:29]}  Nxe6 {[%clk 0:00:52]} 32. Ndxe6 {[%clk 0:00:25]}  fxe6 {[%clk 0:00:52]} 33. Qe2 {[%clk 0:00:20]}  Qb6+ {[%clk 0:00:43]} 34. Kh2 {[%clk 0:00:20]}  Ba6 {[%clk 0:00:43]} 35. Nd3 {[%clk 0:00:17]}  Rf8 {[%clk 0:00:34]} 36. Rfd1 {[%clk 0:00:16]}  Rf7 {[%clk 0:00:29]} 37. Qe1 {[%clk 0:00:14]}  Rbf8 {[%clk 0:00:29]} 38. Ra1 {[%clk 0:00:11]}  Qb5 {[%clk 0:00:27]} 39. Ra3 {[%clk 0:00:05]}  Rf2 {[%clk 0:00:14]} 40. Nxf2 {[%clk 0:00:05]}  Qxb2 {[%clk 0:00:14]} 41. Rxa4 {[%clk 0:00:04]}  Rxf2 {[%clk 0:00:14]} 42. Qg1 {[%clk 0:00:04]}  Bb5 {[%clk 0:00:09]} 43. Rb4 {[%clk 0:00:04]}  Qe2 {[%clk 0:00:09]} 44. Re1 {[%clk 0:00:04]}  Rxg2+ {[%clk 0:00:08]} 45. Qxg2 {[%clk 0:00:04]}  Qxe1 {[%clk 0:00:08]} 46. Rxb5 {[%clk 0:00:05]}  Qxc3 {[%clk 0:00:08]} 47. Rb7+ {[%clk 0:00:05]}  Bg7 {[%clk 0:00:09]} 48. Qf2 {[%clk 0:00:04]}  d5 {[%clk 0:00:06]} 49. exd5 {[%clk 0:00:04]}  exd5 {[%clk 0:00:07]} 50. Rf7 {[%clk 0:00:05]}  Qe5 {[%clk 0:00:06]} 51. Qf4 {[%clk 0:00:03]}  Qxf4 {[%clk 0:00:05]} 52. Rxf4 {[%clk 0:00:03]}  d4 {[%clk 0:00:06]} 53. Rf1 {[%clk 0:00:04]}  Be5 {[%clk 0:00:06]} 54. Kg2 {[%clk 0:00:05]}  Kg7 {[%clk 0:00:06]} 55. Kf3 {[%clk 0:00:06]}  Kf6 {[%clk 0:00:06]} 56. Ke4+ {[%clk 0:00:07]}  Ke6 {[%clk 0:00:07]} 57. Rg1 {[%clk 0:00:07]}  Bg7 {[%clk 0:00:05]} 58. g4 {[%clk 0:00:08]}  hxg4 {[%clk 0:00:04]} 59. Rxg4 {[%clk 0:00:09]}  Kf7 {[%clk 0:00:04]} 60. Rg1 {[%clk 0:00:09]}  Bf6 {[%clk 0:00:04]} 61. Rh1 {[%clk 0:00:09]}  Kg7 {[%clk 0:00:05]} 62. h5 {[%clk 0:00:09]}  gxh5 {[%clk 0:00:03]} 63. Rxh5 {[%clk 0:00:10]}  Kg6 {[%clk 0:00:04]} 64. Rd5 {[%clk 0:00:10]}  Bg7 {[%clk 0:00:04]} 65. Rd6+ {[%clk 0:00:10]}  Kh7 {[%clk 0:00:04]} 66. Kf5 {[%clk 0:00:11]}  d3 {[%clk 0:00:01]} 67. Rxd3 {[%clk 0:00:10]}  Bb2 {[%clk 0:00:01]} 68. Rb3 {[%clk 0:00:07]}  Kg7 {[%clk 0:00:02]} 69. Rxb2 {[%clk 0:00:07]}  Kf7 {[%clk 0:00:02]} 70. Re2 {[%clk 0:00:07]}  Kf8 {[%clk 0:00:02]} 71. Kg6 {[%clk 0:00:07]}  Kg8 {[%clk 0:00:02]} 72. Re8# {[%clk 0:00:08]} 1-0


[Site "https://www.chess.com"]

[Event "Titled Tuesday Blitz July 26 Late 2022"]
[White "Pakleza, Zbigniew"]
[Black "Yoo, Christopher Woojin"]
[WhiteFideId "1119290"]
[BlackFideId "30909694"]
[WhiteElo "2467"]
[BlackElo "2105"]
[Result "0-1"]
[Round "09"]
[TimeControl "180+1"]
[Date "2022.07.26"]
[WhiteClock "0:00:02"]
[BlackClock "0:00:05"]

1. d4 {[%clk 0:03:00]}  Nf6 {[%clk 0:02:55]} 2. Nf3 {[%clk 0:03:01]}  d5 {[%clk 0:02:53]} 3. Bf4 {[%clk 0:03:01]}  c5 {[%clk 0:02:53]} 4. c3 {[%clk 0:03:01]}  Qb6 {[%clk 0:02:43]} 5. Qb3 {[%clk 0:03:01]}  Nc6 {[%clk 0:02:41]} 6. Nbd2 {[%clk 0:02:55]}  cxd4 {[%clk 0:02:35]} 7. Qxb6 {[%clk 0:02:51]}  axb6 {[%clk 0:02:35]} 8. Nxd4 {[%clk 0:02:52]}  Nxd4 {[%clk 0:02:35]} 9. cxd4 {[%clk 0:02:53]}  e6 {[%clk 0:02:16]} 10. e3 {[%clk 0:02:49]}  Bb4 {[%clk 0:02:14]} 11. f3 {[%clk 0:02:35]}  Bd7 {[%clk 0:02:13]} 12. Bd3 {[%clk 0:02:33]}  Ke7 {[%clk 0:01:48]} 13. Ke2 {[%clk 0:02:28]}  Rhc8 {[%clk 0:01:44]} 14. a3 {[%clk 0:02:28]}  Bd6 {[%clk 0:01:43]} 15. Bxd6+ {[%clk 0:02:28]}  Kxd6 {[%clk 0:01:43]} 16. Rhc1 {[%clk 0:02:29]}  e5 {[%clk 0:01:38]} 17. dxe5+ {[%clk 0:02:25]}  Kxe5 {[%clk 0:01:39]} 18. Nb3 {[%clk 0:02:25]}  g6 {[%clk 0:01:29]} 19. Nd4 {[%clk 0:02:23]}  Ne8 {[%clk 0:01:30]} 20. Bb5 {[%clk 0:02:10]}  Bxb5+ {[%clk 0:01:25]} 21. Nxb5 {[%clk 0:02:11]}  Rc5 {[%clk 0:01:16]} 22. Nd4 {[%clk 0:01:38]}  Nd6 {[%clk 0:01:04]} 23. Kd3 {[%clk 0:01:10]}  Rac8 {[%clk 0:00:47]} 24. Ne2 {[%clk 0:00:45]}  Rxc1 {[%clk 0:00:38]} 25. Nxc1 {[%clk 0:00:09]}  Nc4 {[%clk 0:00:38]} 26. Rb1 {[%clk 0:00:05]}  Kd6 {[%clk 0:00:38]} 27. Ne2 {[%clk 0:00:05]}  Re8 {[%clk 0:00:37]} 28. e4 {[%clk 0:00:05]}  Ne5+ {[%clk 0:00:38]} 29. Ke3 {[%clk 0:00:04]}  dxe4 {[%clk 0:00:21]} 30. fxe4 {[%clk 0:00:04]}  Nc4+ {[%clk 0:00:19]} 31. Kd4 {[%clk 0:00:04]}  Na5 {[%clk 0:00:11]} 32. Nc3 {[%clk 0:00:02]}  Nb3+ {[%clk 0:00:11]} 33. Ke3 {[%clk 0:00:03]}  f5 {[%clk 0:00:10]} 34. Rd1+ {[%clk 0:00:04]}  Kc6 {[%clk 0:00:10]} 35. Kf4 {[%clk 0:00:03]}  fxe4 {[%clk 0:00:07]} 36. Nxe4 {[%clk 0:00:04]}  Nc5 {[%clk 0:00:07]} 37. Nxc5 {[%clk 0:00:03]}  bxc5 {[%clk 0:00:08]} 38. g4 {[%clk 0:00:02]}  Re2 {[%clk 0:00:08]} 39. h4 {[%clk 0:00:02]}  Rxb2 {[%clk 0:00:08]} 40. Kg5 {[%clk 0:00:03]}  Rg2 {[%clk 0:00:06]} 41. Rf1 {[%clk 0:00:01]}  c4 {[%clk 0:00:06]} 42. Rf7 {[%clk 0:00:01]}  c3 {[%clk 0:00:05]} 43. Rxh7 {[%clk 0:00:02]}  c2 {[%clk 0:00:05]} 44. Rh8 {[%clk 0:00:02]}  c1=Q+ {[%clk 0:00:05]} 0-1


[Site "https://www.chess.com"]

[Event "Titled Tuesday Blitz July 26 Late 2022"]
[White "Pesotskiy, Mikhail"]
[Black "Daggupati, Balaji"]
[WhiteFideId "34164453"]
[BlackFideId "2090759"]
[WhiteElo "2010"]
[BlackElo "2708"]
[Result "0-1"]
[Round "09"]
[TimeControl "180+1"]
[Date "2022.07.26"]
[WhiteClock "0:00:52"]
[BlackClock "0:01:14"]

1. d4 {[%clk 0:03:00]}  d5 {[%clk 0:03:00]} 2. c4 {[%clk 0:02:57]}  e6 {[%clk 0:03:00]} 3. Nc3 {[%clk 0:02:57]}  c6 {[%clk 0:03:00]} 4. e4 {[%clk 0:02:42]}  Bb4 {[%clk 0:02:59]} 5. cxd5 {[%clk 0:02:38]}  exd5 {[%clk 0:02:58]} 6. e5 {[%clk 0:02:34]}  c5 {[%clk 0:02:57]} 7. Bb5+ {[%clk 0:02:34]}  Bd7 {[%clk 0:02:56]} 8. Qa4 {[%clk 0:02:32]}  Nc6 {[%clk 0:02:53]} 9. Ne2 {[%clk 0:02:30]}  a6 {[%clk 0:02:46]} 10. Bxc6 {[%clk 0:02:30]}  Bxc6 {[%clk 0:02:47]} 11. Qb3 {[%clk 0:02:26]}  Ne7 {[%clk 0:02:43]} 12. O-O {[%clk 0:02:26]}  O-O {[%clk 0:02:34]} 13. a3 {[%clk 0:02:26]}  Bxc3 {[%clk 0:02:16]} 14. bxc3 {[%clk 0:02:22]}  Bb5 {[%clk 0:02:16]} 15. Re1 {[%clk 0:02:22]}  Bxe2 {[%clk 0:02:14]} 16. Rxe2 {[%clk 0:02:23]}  cxd4 {[%clk 0:02:11]} 17. cxd4 {[%clk 0:02:24]}  Nc6 {[%clk 0:02:10]} 18. Qxb7 {[%clk 0:01:49]}  Nxd4 {[%clk 0:02:10]} 19. Rb2 {[%clk 0:01:50]}  Qa5 {[%clk 0:01:39]} 20. Be3 {[%clk 0:01:44]}  Nf5 {[%clk 0:01:30]} 21. Qb4 {[%clk 0:01:23]}  Qc7 {[%clk 0:01:28]} 22. Qf4 {[%clk 0:01:10]}  Ne7 {[%clk 0:01:26]} 23. Rc1 {[%clk 0:01:07]}  Qd7 {[%clk 0:01:26]} 24. Rbc2 {[%clk 0:00:52]}  Rac8 {[%clk 0:01:21]} 25. Bc5 {[%clk 0:00:50]}  Ng6 {[%clk 0:01:19]} 26. Qd4 {[%clk 0:00:50]}  Rfe8 {[%clk 0:01:18]} 27. Bd6 {[%clk 0:00:51]}  Rxc2 {[%clk 0:01:14]} 28. Rxc2 {[%clk 0:00:52]}  Qxd6 {[%clk 0:01:14]} 0-1


[Site "https://www.chess.com"]

[Event "Titled Tuesday Blitz July 26 Late 2022"]
[White "Petrovic, Aleksa"]
[Black "Souleidis, Georgios"]
[WhiteFideId "967629"]
[BlackFideId "4206827"]
[WhiteElo "2185"]
[BlackElo "2401"]
[Result "0-1"]
[Round "09"]
[TimeControl "180+1"]
[Date "2022.07.26"]
[WhiteClock "0:00:23"]
[BlackClock "0:00:53"]

1. d4 {[%clk 0:03:00]}  Nf6 {[%clk 0:02:59]} 2. c4 {[%clk 0:03:00]}  g6 {[%clk 0:02:59]} 3. Nc3 {[%clk 0:02:59]}  Bg7 {[%clk 0:03:00]} 4. e4 {[%clk 0:02:59]}  d6 {[%clk 0:03:01]} 5. Be2 {[%clk 0:02:59]}  O-O {[%clk 0:03:01]} 6. Nf3 {[%clk 0:02:59]}  e5 {[%clk 0:03:01]} 7. O-O {[%clk 0:02:59]}  Bg4 {[%clk 0:03:01]} 8. d5 {[%clk 0:02:37]}  a5 {[%clk 0:03:00]} 9. Ne1 {[%clk 0:02:34]}  Bd7 {[%clk 0:03:00]} 10. Nd3 {[%clk 0:02:32]}  Na6 {[%clk 0:02:59]} 11. f4 {[%clk 0:02:28]}  exf4 {[%clk 0:02:59]} 12. Bxf4 {[%clk 0:02:29]}  Qe7 {[%clk 0:02:46]} 13. Bf3 {[%clk 0:02:19]}  h5 {[%clk 0:02:34]} 14. Qd2 {[%clk 0:02:18]}  Ng4 {[%clk 0:02:32]} 15. Bxg4 {[%clk 0:02:14]}  Bxg4 {[%clk 0:02:29]} 16. Rae1 {[%clk 0:02:12]}  f6 {[%clk 0:02:25]} 17. Bh6 {[%clk 0:02:07]}  b6 {[%clk 0:02:19]} 18. h3 {[%clk 0:02:06]}  Bd7 {[%clk 0:02:16]} 19. Bxg7 {[%clk 0:01:52]}  Qxg7 {[%clk 0:02:16]} 20. Ne2 {[%clk 0:01:49]}  Rae8 {[%clk 0:02:13]} 21. Nd4 {[%clk 0:01:45]}  Nc5 {[%clk 0:02:13]} 22. Nxc5 {[%clk 0:01:38]}  dxc5 {[%clk 0:02:03]} 23. Nf3 {[%clk 0:01:36]}  Re7 {[%clk 0:01:36]} 24. Qf4 {[%clk 0:01:34]}  Bc8 {[%clk 0:01:33]} 25. Qh2 {[%clk 0:01:31]}  Rfe8 {[%clk 0:01:31]} 26. Nd2 {[%clk 0:01:19]}  f5 {[%clk 0:01:25]} 27. Qf4 {[%clk 0:00:55]}  fxe4 {[%clk 0:01:19]} 28. Rxe4 {[%clk 0:00:36]}  Rxe4 {[%clk 0:01:13]} 29. Nxe4 {[%clk 0:00:37]}  Qd4+ {[%clk 0:01:10]} 30. Kh1 {[%clk 0:00:37]}  Qxe4 {[%clk 0:00:54]} 31. Qf7+ {[%clk 0:00:34]}  Kh8 {[%clk 0:00:55]} 32. Qxc7 {[%clk 0:00:23]}  Bxh3 {[%clk 0:00:53]} 0-1


[Site "https://www.chess.com"]